[Event "Croatian Team Cup Final 2022"]
[Site "Vodice"]
[Date "2022.05.20"]
[Round "4.11"]
[White "Plenca, Jadranko"]
[Black "Palac, Mladen"]
[Result "1/2-1/2"]
[ECO "B51"]
[WhiteElo "2443"]
[BlackElo "2505"]
[Annotator "TA"]
[PlyCount "81"]
[EventDate "2022.05.18"]
[EventType "team-tourn"]
[EventCountry "CRO"]
[SourceTitle "playchess.com"]
[Source "ChessBase"]
[SourceQuality "1"]
[TimeControl "40/5400+30:1800+30"]

{[%evp 12,81,9,13,20,8,8,12,8,0,0,0,0,0,0,-14,0,-43,-16,-24,-12,-150,-97,-114,-105,-280,-283,-235,-180,-166,-180,-349,-359,-536,-527,-516,-516,-616,-504,-468,-137,-134,-21,-22,0,0,0,0,0,0,0,0,0,0,0,0,0,0,0,0,0,0,0,0,0,0,0,0,0,0,0,0]} 1. e4 {[%emt 0:00:02]} c5 {[%emt 0:04:24]} 2. Nf3 {[%emt 0:00:09]} d6 {[%emt 0:00:17]} 3. Bb5+ {[%emt 0:00:12]} Nd7 {[%emt 0:00:08]} 4. c3 {[%emt 0:02:03]} Ngf6 {[%emt 0:00:38]} 5. Qe2 {[%emt 0:00:15]} a6 {[%emt 0:00:45]} 6. Ba4 {[%emt 0:00:06]} b5 {[%emt 0:00:52]} 7. Bc2 {[%emt 0:00:07]} Bb7 {[%emt 0:00:02] B51: Sicilian: Moscow Variation (3 Bb5+) without 3...Bd7.} 8. d4 {[%emt 0:00:12]} e6 {[%emt 0:00:24]} 9. a4 {[%emt 0:03:17]} Be7 {[%emt 0:05:35]} 10. e5 {[%emt 0:04:52]} Nd5 {[%emt 0:12:14]} 11. axb5 {[%emt 0:04:01]} axb5 {[%emt 0:05:59]} 12. Rxa8 {[%emt 0:00:29]} Qxa8 {[%emt 0:00:01] [#]} 13. exd6 $146 {[%emt 0:06:19]} ({Predecessor:} 13. dxc5 dxc5 14. Qxb5 Nf4 15. Bxf4 Bxf3 16. gxf3 Qxf3 17. O-O Qxf4 18. Rd1 O-O 19. Qxd7 {1-0 (49) Kravtsiv,M (2631)-Kantans,T (2482) Riga 2016}) 13... Bxd6 {[%emt 0:00:13]} 14. Qxb5 {[%emt 0:00:52]} Ba6 {[%emt 0:08:58]} 15. Qa4 {[%emt 0:01:30]} N5b6 $36 {[%emt 0:04:49][%mdl 2048] Black is pushing.} 16. Qa1 {[%emt 0:02:20]} (16. Qa3 $11) 16... O-O {[%emt 0:23:11]} (16... cxd4 $142 17. cxd4 O-O) 17. Be3 {[%emt 0:05:00]} cxd4 {[%emt 0:03:43]} 18. cxd4 {[%emt 0:06:12]} (18. Bxd4 $17 {was the only chance.} Nd5 19. Nbd2) 18... Rc8 {[%emt 0:03:37]} 19. Nc3 {[%emt 0:00:15]} Bb4 {[%emt 0:00:31]} 20. Bd2 {[%emt 0:08:26]} Nf6 {[%emt 0:01:29]} 21. Qb1 $2 {[%emt 0:13:29]} (21. Bd1) 21... Nc4 $19 {[%emt 0:09:37]} 22. Bc1 {[%emt 0:07:36] [#]} (22. Qa1 $142) 22... Nxb2 $1 {[%emt 0:04:40][%mdl 512]} 23. Bxb2 {[%emt 0:00:11]} Qc6 {[%emt 0:02:45]} (23... Bxc3+ $2 24. Bxc3 Rxc3 25. Kd2 $19) 24. Qa1 {[%emt 0:01:45][%cal Of3e5]} Nd5 {[%emt 0:02:42]} (24... Bxc3+ 25. Bxc3 Nd5 26. Ne5 $17) 25. Ne5 {[%emt 0:01:53]} Qb6 {[%emt 0:03:20]} (25... Bxc3+ 26. Bxc3 Qd6 27. Bd3 (27. Bxh7+ $2 Kxh7 28. Qd1 Nf4 $19) 27... Bxd3 28. Nxd3 $17) (25... Qb7 $19 {[%cal Rd5c3] and Black stays clearly on top.} 26. Be4 f6) 26. Bd3 $17 {[%emt 0:01:07]} Rxc3 {[%emt 0:01:50]} ({Don't play} 26... Qxd4 27. O-O (27. Qxa6 Qxe5+ 28. Kf1 Ne7 $17) 27... Rxc3 28. Bxc3 (28. Qxa6 Qxe5 29. Qa8+ Bf8 $18) 28... Nxc3 29. Qxa6 $18) (26... Bxd3 $17 27. Nxd3 Bxc3+ 28. Bxc3 Nxc3) 27. O-O $1 $11 {[%emt 0:00:32] The position is equal.} Rxd3 {[%emt 0:00:24]} 28. Nxd3 {[%emt 0:00:06]} Bxd3 {[%emt 0:00:00] A strong pair of Bishops.} 29. Qa8+ {[%emt 0:00:12]} Bf8 {[%emt 0:00:01]} 30. Ba3 {[%emt 0:00:25][%csl Ga3][%cal Ra8f8]} Nb4 {[%emt 0:00:15]} 31. Rc1 {[%emt 0:00:35] Hoping for Rc8.} Qxd4 {[%emt 0:00:40]} 32. h3 {[%emt 0:00:38] aiming for Rc8.} Be4 {[%emt 0:00:40]} 33. Qb8 {[%emt 0:00:12] Threatens to win with Rc8. Really sharp!} h6 $1 {[%emt 0:01:09][%cal Og8h7] ...Kh7! is the strong threat.} 34. Bxb4 {[%emt 0:01:57]} Qxb4 {[%emt 0:00:02]} 35. Qxb4 {[%emt 0:00:08][%mdl 64] [#] Remove Defender} Bxb4 {[%emt 0:00:01]} 36. Rc4 $1 {[%emt 0:00:07][%csl LRb4,LRe4]} Bxg2 $1 {[%emt 0:00:06]} 37. Kxg2 {[%emt 0:00:24]} Bd6 {[%emt 0:00:16]} 38. Rc6 {[%emt 0:01:56]} Be5 {[%emt 0:00:10]} 39. Rc5 {[%emt 0:00:17]} Bd6 {[%emt 0:00:38]} 40. Rc6 {[%emt 0:00:00]} Be5 {[%emt 0:00:00]} 41. Rc5 {[%emt 0:00:20] Black had all chances to win.  Weighted Error Value: White=0.31/Black=0.30} 1/2-1/2

[Event "Croatian Team Cup Final 2022"]
[Site "Vodice"]
[Date "2022.05.20"]
[Round "4.12"]
[White "Zelcic, Robert"]
[Black "Saric, Luka"]
[Result "1-0"]
[ECO "B41"]
[WhiteElo "2497"]
[BlackElo "2169"]
[Annotator "TA"]
[PlyCount "89"]
[EventDate "2022.05.18"]
[EventType "team-tourn"]
[EventCountry "CRO"]
[SourceTitle "playchess.com"]
[Source "ChessBase"]
[SourceQuality "1"]
[TimeControl "40/5400+30:1800+30"]

{[%evp 14,89,21,-10,0,-5,25,37,35,29,44,14,23,-2,36,6,42,25,35,30,41,26,42,29,33,27,62,1,4,0,4,-11,0,0,0,0,13,24,121,79,75,0,52,0,36,22,269,260,309,290,303,304,401,141,256,268,281,271,324,306,1165,256,218,135,588,503,1029,945,1093,1095,1914,966,949,891,6504,5285,29989,29990]} 1. e4 {[%emt 0:00:03]} c5 {[%emt 0:00:05]} 2. Nf3 {[%emt 0:00:11]} e6 {[%emt 0:00:04]} 3. d4 {[%emt 0:02:52]} cxd4 {[%emt 0:00:05]} 4. Nxd4 {[%emt 0:00:03]} a6 {[%emt 0:00:13]} 5. c4 {[%emt 0:01:37]} Nf6 {[%emt 0:02:04]} 6. Nc3 {[%emt 0:00:20]} Qc7 {[%emt 0:00:35]} 7. Bd3 {[%emt 0:10:53]} Nc6 {[%emt 0:08:25]} 8. Nde2 {[%emt 0:00:29]} Ne5 {[%emt 0:11:02] B41: Sicilian: Kan Variation: 5 c4.} 9. Bf4 {[%emt 0:04:44] [#]} d6 $146 {[%emt 0:10:36]} ({Predecessor:} 9... Bd6 10. Bg3 Nh5 11. Bxe5 Bxe5 12. g3 g5 13. Qd2 Rg8 14. O-O-O b5 15. cxb5 axb5 16. Kb1 {½-½ (81) Shanava,K (2401)-Gagunashvili,M (2469) Kocaeli 2002}) 10. Rc1 {[%emt 0:01:37]} b6 {[%emt 0:04:41] White is slightly better.} 11. O-O {[%emt 0:08:21]} Be7 {[%emt 0:02:07]} 12. h3 {[%emt 0:09:59]} O-O {[%emt 0:01:19]} 13. Bb1 {[%emt 0:00:38]} Bb7 {[%emt 0:01:00]} 14. Bg3 {[%emt 0:07:53]} Ned7 {[%emt 0:25:08]} (14... Qxc4 15. Na4 (15. Nd5 Bxd5 16. Rxc4 Bxc4 $16) 15... Qb5 16. Rc7 $16) 15. Nd4 {[%emt 0:00:54]} Rac8 {[%emt 0:07:05]} 16. b3 {[%emt 0:13:06]} Qb8 {[%emt 0:02:39]} 17. Qe2 {[%emt 0:00:47]} Qa8 {[%emt 0:03:46]} 18. Rfd1 {[%emt 0:01:21]} Rfe8 {[%emt 0:08:26]} 19. Nf3 {[%emt 0:10:19]} Nc5 {[%emt 0:02:34]} 20. Re1 {[%emt 0:01:54]} (20. Bxd6 $14 Ncxe4 21. Nxe4 Bxe4 22. Bxe4 Qxe4 23. Qxe4 Nxe4 24. Bxe7 Rxe7 25. Rd4) 20... d5 $11 {[%emt 0:02:14]} 21. cxd5 {[%emt 0:05:05]} (21. exd5 {keeps more tension.} exd5 22. cxd5 Nxd5 23. Ne5) 21... exd5 {[%emt 0:00:09]} 22. e5 {[%emt 0:01:25]} Nfe4 {[%emt 0:00:21]} 23. Nxe4 {[%emt 0:00:35]} dxe4 {[%emt 0:00:25]} 24. Nd4 {[%emt 0:00:01]} Nd3 {[%emt 0:01:50]} 25. Rxc8 {[%emt 0:00:05]} Rxc8 {[%emt 0:00:15]} (25... Qxc8 $11 {remains equal.} 26. Bxd3 exd3 27. Qxd3 Bb4) 26. Rd1 {[%emt 0:01:20] aiming for e6.} g6 {[%emt 0:02:17]} 27. Nc2 {[%emt 0:07:10]} (27. e6 $16 f6 28. Qe3) 27... Rc5 {[%emt 0:00:41]} (27... Rd8 $11) 28. b4 {[%emt 0:01:05]} ({White should play} 28. Ne3 $14) 28... Rd5 {[%emt 0:01:03]} 29. Ne3 {[%emt 0:01:00]} Rb5 {[%emt 0:00:46]} (29... Rd4 $11 {and Black is okay.}) 30. a3 {[%emt 0:00:19]} Bg5 {[%emt 0:02:45]} (30... Nxe5 $2 31. a4 Nf3+ 32. gxf3 Rxb4 33. fxe4) 31. h4 {[%emt 0:02:49]} ({Don't do} 31. Bxd3 exd3 32. Rxd3 Qe8 $18) 31... Bxe3 {[%emt 0:00:19]} 32. Qxe3 {[%emt 0:00:01] [#] e6 is the strong threat.} Nxe5 {[%emt 0:00:29]} 33. a4 $2 {[%emt 0:00:34]} (33. Rd4 $18 {and White stays clearly on top.}) 33... Nc4 {[%emt 0:00:01]} (33... Rd5 $16 34. Rxd5 Nc4 35. Qxe4 Bxd5) 34. Qc3 $18 {[%emt 0:00:25]} Rd5 {[%emt 0:00:05]} 35. Re1 {[%emt 0:01:20]} b5 {[%emt 0:00:39]} 36. Bxe4 {[%emt 0:00:48]} Rd8 {[%emt 0:00:33] [#]} (36... Rd7) 37. Bxb7 $2 {[%emt 0:00:27]} (37. Bf4 $1 {[%cal Of4h6] White threatens Bh6! and mate.} Qa7 (37... Rd6 38. Bxb7) 38. Bd5 Bxd5 39. Bh6) 37... Qxb7 {[%emt 0:00:01]} 38. h5 {[%emt 0:00:01]} gxh5 {[%emt 0:02:03][%mdl 8192] This move loses the game for Black.} (38... Qc6 $16) 39. Qf6 {[%emt 0:00:48]} Rc8 {[%emt 0:00:26]} (39... Qd7 $142 40. Re7 (40. Qxa6 Qd2 $18) 40... Qd1+ 41. Kh2 Qd5 42. axb5 (42. Qxa6 bxa4 43. Qxa4 Ra8 $16) 42... axb5 43. Rxf7 Qxf7 44. Qxd8+ Kg7 45. Qg5+ Kh8 46. Qxb5 h4 47. Qb8+ Kg7 48. Bxh4 Qe6 49. Qg3+ Kf7) 40. Qg5+ {[%emt 0:00:00]} Kf8 {[%emt 0:00:00]} 41. Qxh5 {[%emt 0:02:05]} Kg8 {[%emt 0:16:43]} 42. Qg5+ {[%emt 0:01:00]} Kf8 {[%emt 0:03:10]} 43. Qf5 {[%emt 0:04:33]} Kg8 {[%emt 0:02:18]} 44. Bh4 {[%emt 0:00:09] White wants to mate with Bf6.} Qc6 {[%emt 0:02:56]} 45. Bf6 {[%emt 0:00:55] Weighted Error Value: White=0.41/Black=0.86} 1-0

[Event "Croatian Team Cup Final 2022"]
[Site "Vodice"]
[Date "2022.05.20"]
[Round "4.13"]
[White "Fercec, Nenad"]
[Black "Skuhala, Jernej"]
[Result "1/2-1/2"]
[ECO "B53"]
[WhiteElo "2415"]
[BlackElo "2378"]
[Annotator "TA"]
[PlyCount "35"]
[EventDate "2022.05.18"]
[EventType "team-tourn"]
[EventCountry "CRO"]
[SourceTitle "playchess.com"]
[Source "ChessBase"]
[SourceQuality "1"]
[TimeControl "40/5400+30:1800+30"]

{[%evp 9,35,9,22,3,24,0,0,0,0,-18,14,9,14,0,24,0,17,27,21,29,31,0,0,0,29,0,0,0]} 1. e4 {[%emt 0:04:39]} c5 {[%emt 0:00:22]} 2. Nf3 {[%emt 0:00:23]} d6 {[%emt 0:00:02]} 3. d4 {[%emt 0:00:07]} cxd4 {[%emt 0:00:07]} 4. Qxd4 {[%emt 0:00:08]} Nc6 {[%emt 0:00:04]} 5. Qe3 {[%emt 0:00:07]} g6 {[%emt 0:00:03]} 6. Be2 {[%emt 0:00:08] B53: Sicilian: 2...d6: Lines with Qxd4.} Bg7 {[%emt 0:00:06]} 7. O-O {[%emt 0:00:08]} Nf6 {[%emt 0:00:12]} 8. h3 {[%emt 0:00:07]} O-O {[%emt 0:00:09]} 9. c4 {[%emt 0:00:05] Prevents d5.} Be6 {[%emt 0:03:36]} 10. Nc3 {[%emt 0:24:13]} Na5 {[%emt 0:08:55]} 11. Nd2 {[%emt 0:00:52] [#]} Rc8 $146 {[%emt 0:04:41][%cal Ra5c4]} ({Predecessor:} 11... Qc8 12. b3 b5 13. cxb5 Nxe4 14. Ndxe4 d5 15. Nxd5 Bxd5 16. Rb1 Qc2 17. Bd3 Qxa2 {½-½ (45) Garcia Fernandez,J (2173)-Veras Sanz,M (2057) Aragon 2016}) 12. Nd5 {[%emt 0:05:09]} Nd7 {[%emt 0:01:36]} (12... Nc6 $5 {[%cal Rc6d4]}) 13. Rb1 {[%emt 0:01:10]} ({But not} 13. Qxa7 $2 Bxd5 14. exd5 Nc5 $19) 13... Nc6 {[%emt 0:03:51]} 14. b3 {[%emt 0:12:49]} Bd4 {[%emt 0:09:45]} 15. Qh6 {[%emt 0:00:51]} Bg7 {[%emt 0:03:42]} 16. Qe3 {[%emt 0:04:35]} Bd4 {[%emt 0:00:05]} 17. Qh6 {[%emt 0:06:27]} Bg7 {[%emt 0:00:31]} 18. Qe3 {[%emt 0:00:05] An even fight not without its subleties.  Weighted Error Value: White=0.11 (very precise) /Black=0.09 (flawless)} 1/2-1/2

[Event "Croatian Team Cup Final 2022"]
[Site "Vodice"]
[Date "2022.05.20"]
[Round "4.14"]
[White "Segovic, Goran"]
[Black "Zufic, Miroslav"]
[Result "1/2-1/2"]
[ECO "B32"]
[WhiteElo "2291"]
[BlackElo "2384"]
[Annotator "TA"]
[PlyCount "81"]
[EventDate "2022.05.18"]
[EventType "team-tourn"]
[EventCountry "CRO"]
[SourceTitle "playchess.com"]
[Source "ChessBase"]
[SourceQuality "1"]
[TimeControl "40/5400+30:1800+30"]

{[%evp 14,81,28,18,39,33,44,41,36,17,16,16,54,0,37,0,6,-47,-39,-43,-33,-24,-29,-22,-35,-24,0,0,0,-67,0,0,69,54,96,0,0,-14,22,20,76,-3,21,9,70,31,96,82,123,100,135,109,102,91,81,19,180,120,141,120,117,116,149,155,157,124,124,125,132,121]} 1. e4 {[%emt 0:00:03]} c5 {[%emt 0:05:13]} 2. Nf3 {[%emt 0:00:06]} Nc6 {[%emt 0:00:11]} 3. d4 {[%emt 0:00:09]} cxd4 {[%emt 0:00:11]} 4. Nxd4 {[%emt 0:00:05]} e5 {[%emt 0:01:16]} 5. Nb5 {[%emt 0:00:17]} d6 {[%emt 0:00:06]} 6. c4 {[%emt 0:00:19]} Be6 $1 {[%emt 0:01:08][%mdl 4] now scores much better than the old 6...Be7.} 7. N1c3 {[%emt 0:01:08]} a6 {[%emt 0:00:25]} 8. Na3 {[%emt 0:00:33]} g6 {[%emt 0:00:26] B32: Sicilian: Löwenthal and Kalashnikov Variations.} 9. Be3 {[%emt 0:05:13]} Nf6 {[%emt 0:11:21]} 10. f3 {[%emt 0:01:51] Inhibits Ng4.} Bg7 {[%emt 0:02:29] White is slightly better.} 11. Nc2 {[%emt 0:03:02]} O-O {[%emt 0:05:44]} 12. Qd2 {[%emt 0:01:34]} Rc8 {[%emt 0:16:25] [#]} 13. Rc1 $146 {[%emt 0:05:19]} (13. Rd1 $14) ({Predecessor:} 13. b3 Qa5 14. Be2 Nh5 15. g3 Nf4 16. Nd5 Ng2+ 17. Kf2 Nxe3 18. Qxa5 Nxc2 19. Qd2 Nxa1 20. Rxa1 {0-1 (38) Al Tarbosh,W (2221)-Fawzy,A (2476) Chess.com INT 2022}) 13... Nd4 {[%emt 0:08:49]} 14. b3 {[%emt 0:06:42]} b5 $1 {[%emt 0:06:18][%cal Rb5c4]} 15. Nd5 {[%emt 0:26:55]} (15. Nxd4 $11 exd4 16. Bxd4) 15... bxc4 $1 $15 {[%emt 0:08:08]} 16. bxc4 {[%emt 0:06:28]} Bxd5 {[%emt 0:06:58]} 17. cxd5 {[%emt 0:02:41] [#]} Nxe4 $1 {[%emt 0:08:14]} 18. fxe4 {[%emt 0:03:11] Hoping for Bd3.} Qh4+ {[%emt 0:00:06]} 19. Kd1 $1 {[%emt 0:11:54]} Qg4+ {[%emt 0:02:35]} 20. Ke1 {[%emt 0:02:38]} Qh4+ {[%emt 0:01:34]} (20... Qxe4 21. Bd3 Qxd5 22. Kf2 $14 (22. Bxa6 $2 Rxc2 23. Rxc2 Nxc2+ 24. Qxc2 Qa5+ 25. Kf2 Qxa6 $19)) 21. Kd1 {[%emt 0:00:09]} Qg4+ {[%emt 0:00:05]} (21... Qxe4 $15 22. Bd3 Qg4+ 23. Ke1 Nf5) 22. Ke1 $11 {[%emt 0:00:05][%cal Bd1e1,Be1f2,Bf2g1,Bg1h1][%mdl 32]} Qxe4 {[%emt 0:00:04]} (22... Qh4+ $11 23. Kd1) 23. Bd3 $14 {[%emt 0:00:31]} Qxd5 {[%emt 0:01:00] And now ...e4 would win.} 24. Bxd4 {[%emt 0:02:54]} ({Not} 24. Bxa6 $2 Rxc2 25. Rxc2 Nxc2+ 26. Qxc2 Qa5+ 27. Kf2 Qxa6 $19) (24. Kf2 $16) 24... exd4 $11 {[%emt 0:00:21]} 25. Kf2 {[%emt 0:01:47]} Qh5 {[%emt 0:06:39][%mdl 1024] Threatens to win with ...Bh6. Black has compensation.} 26. Qe2 {[%emt 0:03:42] With the idea Qxh5.} ({Don't blunder} 26. Bxa6 $2 Bh6 27. Qe2 Qf5+ 28. Qf3 Rxc2+ 29. Rxc2 Qxc2+ 30. Qe2 Qf5+ 31. Qf3 Be3+ 32. Kg3 Qg5+ 33. Kh3 Qh6+ 34. Kg3 g5 $19) 26... Qg5 {[%emt 0:01:09]} (26... Qe5 $11) 27. Rhe1 {[%emt 0:01:56]} ({Better is} 27. Rhf1 $16) 27... Rc3 {[%emt 0:03:34] aiming for ...Qh4+.} 28. Rcd1 {[%emt 0:03:40]} a5 {[%emt 0:00:55]} (28... Qh4+ $11 29. Kg1 Be5) 29. Rf1 {[%emt 0:02:04]} h5 {[%emt 0:02:22]} (29... Qd5 $14) 30. Kg1 $16 {[%emt 0:00:19]} Qd8 {[%emt 0:01:05]} 31. Qf3 {[%emt 0:01:05] White is more active.} d5 {[%emt 0:00:17]} 32. Kh1 {[%emt 0:00:56]} Qd7 {[%emt 0:00:22]} 33. Qf4 {[%emt 0:01:34]} Qa4 {[%emt 0:00:21][%csl LRa2,LRc2][%cal Oc3d3]} 34. Qd2 {[%emt 0:01:57]} ({White should try} 34. Qf2 $16) 34... Rb8 $2 {[%emt 0:00:38] [#]} (34... Qxa2 $11 {and Black has nothing to worry.} 35. Rb1 Rb3) 35. Ne1 {[%emt 0:01:02]} ({Much less strong is} 35. Qf4 $6 Rf8 $14) (35. Rxf7 $1 $18 {[%mdl 512]} Rxd3 36. Rxg7+ Kxg7 37. Qxd3) 35... Ra3 {[%emt 0:00:40]} 36. Bb1 {[%emt 0:00:42]} Re3 {[%emt 0:00:45]} 37. Nf3 {[%emt 0:01:24]} Rb4 {[%emt 0:00:32]} 38. Ng5 {[%emt 0:02:52]} Rb7 {[%emt 0:00:31]} 39. Qf2 {[%emt 0:00:25][%cal Rg5f7]} Qe8 {[%emt 0:00:28]} 40. Bd3 {[%emt 0:00:00]} Qe7 {[%emt 0:00:00]} 41. Nf3 {[%emt 0:01:06] Weighted Error Value: White=0.23 (precise) /Black=0.28 (precise)} 1/2-1/2

[Event "Croatian Team Cup Final 2022"]
[Site "Vodice"]
[Date "2022.05.20"]
[Round "4.15"]
[White "Rubil, Marko"]
[Black "Zadravec, Matija"]
[Result "1/2-1/2"]
[ECO "D18"]
[WhiteElo "2272"]
[BlackElo "2263"]
[Annotator "TA"]
[PlyCount "32"]
[EventDate "2022.05.18"]
[EventType "team-tourn"]
[EventCountry "CRO"]
[SourceTitle "playchess.com"]
[Source "ChessBase"]
[SourceQuality "1"]
[TimeControl "40/5400+30:1800+30"]

{[%evp 17,32,0,5,7,12,0,22,0,0,0,0,0,-8,-6,0,2,3]} 1. d4 {Huebner,R} d5 2. c4 c6 3. Nc3 Nf6 4. Nf3 dxc4 5. a4 Bf5 6. e3 e6 7. Bxc4 Bb4 {[%cal Bf8b4,Bb4d6,Bd6e5][%mdl 32]} 8. O-O Nbd7 9. Qe2 Bg6 $1 {The position is equal. The main line 9...Bg6 scores better than 9...0-0.} 10. Na2 {D18: Slav Defence: 5 a4 Bf5 6 e3.} Bd6 11. Nc3 O-O 12. e4 {[#] Strongly threatening e5.} e5 13. dxe5 Nxe5 14. Nxe5 Bxe5 15. f3 Qc7 16. g3 {[%emt 0:08:00] [#]} Rad8 $146 {[%emt 0:08:00] An interesting draw.  Weighted Error Value: White=0.05 (flawless) /Black=0.05 (flawless)} ({Predecessor:} 16... Kh8 17. Be3 Nd7 18. Rfd1 Rae8 19. a5 f5 20. Bxa7 fxe4 21. Nxe4 Bxe4 22. fxe4 b5 23. axb6 Nxb6 24. Kg2 Nxc4 25. Qxc4 Bxb2 26. Ra2 {½-½ (26) Nikolic,P (2641)-Van Wely,L (2629) Batumi 1999 CBM 074 [Huebner,R]}) 1/2-1/2

[Event "Croatian Team Cup Final 2022"]
[Site "Vodice"]
[Date "2022.05.20"]
[Round "4.16"]
[White "Makovec, Bruno"]
[Black "Perusko, Niko"]
[Result "1-0"]
[ECO "D38"]
[WhiteElo "2215"]
[BlackElo "1867"]
[Annotator "TA"]
[PlyCount "89"]
[EventDate "2022.05.18"]
[EventType "team-tourn"]
[EventCountry "CRO"]
[SourceTitle "playchess.com"]
[Source "ChessBase"]
[SourceQuality "1"]
[TimeControl "40/5400+30:1800+30"]

{[%evp 10,89,16,6,21,0,84,60,49,68,57,55,66,81,83,61,62,32,49,39,65,65,73,67,67,60,67,54,60,58,78,58,70,60,68,70,71,66,100,83,94,89,131,122,131,130,182,174,280,271,277,265,252,239,241,246,266,194,477,477,477,477,470,470,562,437,450,405,566,553,989,1003,967,932,901,918,12837,12837,12827,5952,5952,1741]} 1. Nf3 {[%emt 0:00:03]} Nf6 {[%emt 0:04:09]} 2. c4 {[%emt 0:00:07]} e6 {[%emt 0:00:30]} 3. d4 {[%emt 0:00:15]} d5 {[%emt 0:00:05]} 4. Nc3 {[%emt 0:00:13]} Bb4 {[%emt 0:02:56]} 5. Qa4+ {[%emt 0:06:40]} Nc6 {[%emt 0:00:11]} 6. cxd5 {[%emt 0:00:39]} Nxd5 {[%emt 0:16:06] [#] D38: Queen's Gambit Declined: Ragozin Defence (4 Nf3 Bb4).} 7. Qb3 $146 {[%emt 0:06:07]} ({Predecessor:} 7. Bd2 O-O 8. e3 Nb6 9. Qc2 Be7 10. a3 Nd5 11. Bd3 h6 12. O-O Nxc3 13. Bxc3 Bd6 14. e4 {1-0 (29) Jaracz,P (2459)-Karttunen,M (2489) Chess.com INT 2022}) 7... Nde7 {[%emt 0:07:04]} (7... e5 $11 {remains equal.} 8. dxe5 (8. e4 Nxd4 9. Nxd4 exd4 $11) 8... Be6) 8. e3 {[%emt 0:10:23]} O-O {[%emt 0:02:06] White is slightly better.} 9. Be2 {[%emt 0:04:29]} Bd6 {[%emt 0:09:27]} 10. O-O {[%emt 0:02:48]} e5 {[%emt 0:06:59]} 11. dxe5 {[%emt 0:07:15] White is more active.} Nxe5 {[%emt 0:00:17]} 12. Nxe5 {[%emt 0:08:43]} Bxe5 {[%emt 0:00:03]} 13. Rd1 {[%emt 0:00:48]} Qe8 {[%emt 0:02:03]} 14. f4 {[%emt 0:09:49]} Bxc3 {[%emt 0:05:52]} 15. Qxc3 {[%emt 0:01:21]} Qc6 {[%emt 0:00:34]} 16. Qxc6 {[%emt 0:02:49]} Nxc6 {[%emt 0:00:15]} 17. Bd2 {[%emt 0:06:48]} Be6 {[%emt 0:03:02]} 18. Bc3 {[%emt 0:01:39]} Rad8 {[%emt 0:00:30]} 19. b3 {[%emt 0:02:28]} f6 {[%emt 0:07:31]} 20. Kf2 {[%emt 0:02:56]} Rxd1 {[%emt 0:01:52]} 21. Rxd1 {[%emt 0:00:09]} Rd8 {[%emt 0:00:04]} 22. Rxd8+ {[%emt 0:00:35]} Nxd8 $14 {[%emt 0:00:02][%mdl 4096] Endgame KBB-KBN} 23. e4 {[%emt 0:01:42]} f5 {[%emt 0:07:31] White leaves nothing to chance now.} 24. Bd3 {[%emt 0:01:38]} fxe4 {[%emt 0:09:45]} 25. Bxe4 {[%emt 0:00:10]} Nc6 {[%emt 0:00:15]} 26. Kf3 {[%emt 0:02:08]} g6 {[%emt 0:01:13] [#]} 27. g4 $1 {[%emt 0:01:44] Against Bf5} Kf7 {[%emt 0:01:21]} (27... Bd7 $16 {was called for.} 28. f5 gxf5 29. gxf5 Kf7) 28. f5 $18 {[%emt 0:01:27]} Bd7 {[%emt 0:00:09]} (28... gxf5 $142 29. gxf5 Bd7) 29. fxg6+ {[%emt 0:07:55]} hxg6 {[%emt 0:00:01]} 30. Kf4 {[%emt 0:00:14]} Nd8 {[%emt 0:02:42]} 31. Kg5 {[%emt 0:01:30]} Ne6+ {[%emt 0:00:08]} 32. Kh6 {[%emt 0:00:29]} Nf8 {[%emt 0:00:07]} 33. h3 {[%emt 0:03:52] [#] And now Bb4 would win.} ({Resist} 33. Bxb7 Bxg4 34. Bd4 a5 $18) 33... b6 $2 {[%emt 0:04:14]} (33... Bc6) 34. Bg7 {[%emt 0:02:04] A strong pair of Bishops.} Ne6 {[%emt 0:00:40]} 35. Bxg6+ {[%emt 0:00:23]} Kg8 {[%emt 0:00:02]} 36. Be5 {[%emt 0:00:30]} c5 {[%emt 0:00:19]} 37. Bh7+ {[%emt 0:01:24]} Kf7 {[%emt 0:01:07]} 38. Bf5 {[%emt 0:02:27] g5 is the strong threat.} Kg8 {[%emt 0:00:12]} 39. g5 {[%emt 0:00:49][%cal Bg4g5,Bg5g6][%mdl 32] White is clearly winning.} a5 {[%emt 0:00:33]} 40. Bh7+ {[%emt 0:00:00]} Kf8 {[%emt 0:00:00]} 41. g6 {[%emt 0:01:46]} Ke8 {[%emt 0:00:37]} 42. h4 {[%emt 0:00:50]} a4 {[%emt 0:00:26]} 43. g7 {[%emt 0:00:57]} Nxg7 {[%emt 0:00:04]} 44. Kxg7 {[%emt 0:00:13]} Be6 {[%emt 0:00:05]} 45. Bg8 {[%emt 0:00:48] Weighted Error Value: White=0.11 (very precise) /Black=0.37} 1-0